Cogmind - Beta 9.3 --- EXPLORER MODE // 2020.01.01 @ 14:47:58 // Winter2019/RPGLIKE Player: K.Ioz Result: Destroyed by G-50 Soldier with Heavy Laser Performance ------------- Evolutions (5) 2500 Regions Visited (16) 3200 Robots Destroyed (372) 1860 Value Destroyed (14033) 14033 Prototype IDs (48) 960 Alien Tech Used (0) 0 Bonus (691) 691 TOTAL SCORE: 23244 Bonus ------- High Alert Combat Kills 545 Follower Combat Kills 177 Aligned with FarCom 300 Met Imprinter 300 Was Imprinted 300 Friendly Fire -931 Cogmind --------- Core Integrity 0/1650 Matter 17/750 Energy 900/900 System Corruption 8% Temperature Cool (9) Movement Treading (163) Location -5/Upper Caves Parts ------- > --- POWER (3) -------- Reinforced Deuterium Engine Cooled Deuterium Engine F-cell Engine > --- PROPULSION (4) --- Improved Treads Armored Treads Heavy Treads > --- UTILITY (6) ------ Advanced Heat Sink Advanced Cooling System Medium Matter Pod Enhanced Optical Array Advanced Terrain Scanner Makeshift Armor Plating > --- WEAPON (10) ------ Variable Charge Gun Cooled Plasma Rifle Matter Neutralizer Heavy Battle Rifle Coil Gun KE Penetrator Advanced Assault Cannon Mini Assault Cannon Mass Driver Enhanced Gauss Cannon > --- INVENTORY (1) ---- High-capacity Matter Pod (200) Peak State ------------ > --- POWER ------------ Reinforced Deuterium Engine Cooled Deuterium Engine F-cell Engine > --- PROPULSION ------- Improved Treads Armored Treads Heavy Treads > --- UTILITY ---------- Advanced Heat Sink Advanced Cooling System Medium Matter Pod Enhanced Optical Array Makeshift Armor Plating Mapping Drone Bay > --- WEAPON ----------- Variable Charge Gun Cooled Plasma Rifle Matter Neutralizer Heavy Battle Rifle Coil Gun KE Penetrator Advanced Assault Cannon Mini Assault Cannon Mass Driver Enhanced Gauss Cannon > --- INVENTORY -------- High-capacity Matter Pod [Rating: 114] Favorites ----------- Power Improved Ion Engine Engine Improved Ion Engine Power Core Light Fission Core Reactor Light Antimatter Reactor Propulsion Medium Treads Treads Medium Treads Utility Cooling System Device Cooling System Storage Medium Matter Pod Processor Enhanced Optical Array Protection Hardened Light Armor Plating Weapon Heavy EM Pulse Gun Energy Gun Heavy EM Pulse Gun Energy Cannon Heavy Particle Cannon Ballistic Gun Heavy Battle Rifle Ballistic Cannon Advanced Assault Cannon Launcher EMP Blaster Special Weapon Plasma Cutter Build | -11 -10 -10 -9 -9 -9 -8 -8 -7 -7 -6 -6 -6 -6 -5 -5 -5 ------- Run | Scr Mat Min Mat Min Exi Min Mat Fac Sto Fac Low Low Zio Pro Fac Upp Slots Evolved 19 | 3 . . 6 . 1 . 4 1 1 . 1 1 . . 1 . Power 2 | . . . 1 . . . . . . . . 1 . . . . Propulsion 3 | 1 . . . . . . 1 . . . 1 . . . . . Utility 5 | . . . 1 . . . 2 1 1 . . . . . . . Weapon 9 | 2 . . 4 . 1 . 1 . . . . . . . 1 . Parts Attached 117 | 7 4 . 14 . 5 2 9 17 12 1 3 9 5 5 19 5 Power 16 | 1 . . 3 . . . . 3 2 . . 4 1 1 1 . Engine 12 | 1 . . 3 . . . . 3 2 . . 2 . . 1 . Core 3 | . . . . . . . . . . . . 2 . 1 . . Reactor 1 | . . . . . . . . . . . . . 1 . . . Propulsion 10 | 2 . . . . . . 1 2 . . 2 . . 1 2 . Treads 10 | 2 . . . . . . 1 2 . . 2 . . 1 2 . Leg . | . . . . . . . . . . . . . . . . . Wheel . | . . . . . . . . . . . . . . . . . Hover . | . . . . . . . . . . . . . . . . . Flight . | . . . . . . . . . . . . . . . . . Utility 36 | 1 . . 2 . 3 2 3 5 1 1 . 3 4 . 8 3 Device 24 | . . . 1 . 3 1 1 2 1 1 . 2 3 . 7 2 Storage 1 | . . . . . . . . . . . . . . . 1 . Processor 3 | . . . . . . . 1 1 . . . 1 . . . . Hackware . | . . . . . . . . . . . . . . . . . Protection 8 | 1 . . 1 . . 1 1 2 . . . . 1 . . 1 Artifact . | . . . . . . . . . . . . . . . . . Weapon 55 | 3 4 . 9 . 2 . 5 7 9 . 1 2 . 3 8 2 Energy Gun 19 | 2 2 . 2 . . . 3 3 4 . . . . . 3 . Energy Cannon 13 | . . . 2 . 2 . 2 1 1 . . . . 2 1 2 Ballistic Gun 10 | 1 2 . 1 . . . . . 2 . . 1 . 1 2 . Ballistic Cannon 11 | . . . 3 . . . . 3 1 . 1 1 . . 2 . Launcher 1 | . . . 1 . . . . . . . . . . . . . Special Weapon 1 | . . . . . . . . . 1 . . . . . . . Impact Weapon . | . . . . . . . . . . . . . . . . . Slashing Weapon . | . . . . . . . . . . . . . . . . . Piercing Weapon . | . . . . . . . . . . . . . . . . . Special Melee Weapon . | . . . . . . . . . . . . . . . . . Unidentified Prototypes 16 | . . . 1 . 3 . 1 3 4 . . . 1 . 3 . Parts Lost 2 | . . . . . . . . . . . . . . . 2 . Power . | . . . . . . . . . . . . . . . . . Propulsion . | . . . . . . . . . . . . . . . . . Utility 1 | . . . . . . . . . . . . . . . 1 . Weapon 1 | . . . . . . . . . . . . . . . 1 . Highest Loss Streak 1 | . . . . . . . . . . . . . . . 1 . Average Slot Usage (%) 99 | . 100 100 99 100 100 99 100 99 99 100 100 98 99 99 98 94 Engine 11 | . 14 14 16 15 14 14 11 10 10 10 9 8 9 9 12 13 Treads 17 | . 28 28 19 15 14 14 12 15 15 15 18 18 18 18 16 13 Device 14 | . . . 1 7 9 13 14 18 22 25 23 21 17 18 16 12 Processor 1 | . . . . . . . 2 . . . . . 4 4 4 4 Protection 5 | . 14 14 9 7 4 . 2 5 5 5 4 4 4 4 4 4 Energy Gun 17 | . 27 28 26 23 21 21 23 21 19 20 15 13 9 9 9 8 Energy Cannon 5 | . . . . 7 10 14 13 10 5 5 4 4 4 6 5 3 Ballistic Gun 6 | . 14 14 10 7 7 7 5 2 . . . . 4 7 12 13 Ballistic Cannon 10 | . . . 6 7 7 7 3 7 14 15 18 18 18 14 13 17 Launcher 3 | . . . 7 7 7 7 5 5 5 5 4 4 4 1 . . Naked Turns . | . . . . . . . . . . . . . . . . . Heaviest Build 112 | 12 13 13 43 43 59 52 62 77 79 79 82 100 97 96 112 112 Greatest Support 113 | 40 40 40 40 40 40 40 60 76 76 76 107 107 107 107 113 113 Greatest Overweight (x) 1 | . . . 1 1 1 1 1 1 1 1 1 . . . 1 . Average Overweight (x) . | . . . . 1 1 1 1 . . 1 . . . . . . Largest Inventory Capacity 1 | . 1 1 1 1 1 1 1 1 1 1 1 1 1 1 1 1 Average Capacity . | . . 1 1 1 1 1 1 1 1 1 1 1 1 1 1 1 Most Carried 1 | . 1 1 1 1 1 1 1 1 1 1 1 1 1 1 1 1 Average Carried . | . . 1 1 1 1 1 1 . 1 1 1 1 1 1 1 1 Final Capacity 1 | . 1 1 1 1 1 1 1 1 1 1 1 1 1 1 1 1 Final Carried 1 | . 1 1 1 1 1 1 1 1 1 1 1 1 1 1 1 1 Class Distribution -------------------- 47% | Hacker-Executioner 17% | Scavenger-Executioner 13% | Hacker-Mutant 12% | Hacker-Gunner 5% | Messiah-Executioner Dominant Class ---------------- Hacker-Gunner | -10/Materials Hacker-Gunner | -10/Mines Hacker-Executioner | -9/Materials Hacker-Executioner | -9/Mines Hacker-Mutant | -9/Exiles Hacker-Mutant | -8/Mines Hacker-Mutant | -8/Materials Hacker-Executioner | -7/Factory Hacker-Executioner | -7/Storage Hacker-Executioner | -6/Factory Hacker-Executioner | -6/Lower Caves Hacker-Executioner | -6/Lower Caves Scavenger-Executioner | -6/Zion Scavenger-Executioner | -5/Proximity Caves Hacker-Executioner | -5/Factory Hacker-Executioner | -5/Upper Caves Resources | -11 -10 -10 -9 -9 -9 -8 -8 -7 -7 -6 -6 -6 -6 -5 -5 -5 ----------- Run | Scr Mat Min Mat Min Exi Min Mat Fac Sto Fac Low Low Zio Pro Fac Upp Matter Collected 9229 | 270 358 6 529 171 . 184 252 780 1321 76 554 697 211 1049 2739 32 Remotely . | . . . . . . . . . . . . . . . . . Salvage Created 12546 | . 444 . 1170 78 . 241 1322 2023 2117 201 601 417 . 586 3346 . Parts 774 | . 33 . 105 7 . 8 87 123 110 6 31 46 1 64 149 4 Haulers Intercepted 4 | . 1 . . . . . . 1 2 . . . . . . . Recyclers Shooed 5 | . . . 3 . . . . 1 . . . . . . 1 . Parts Field Recycled . | . . . . . . . . . . . . . . . . . Retrieved Matter . | . . . . . . . . . . . . . . . . . Parts Self-Destructed . | . . . . . . . . . . . . . . . . . Prevented . | . . . . . . . . . . . . . . . . . Kills | -11 -10 -10 -9 -9 -9 -8 -8 -7 -7 -6 -6 -6 -6 -5 -5 -5 ------- Run | Scr Mat Min Mat Min Exi Min Mat Fac Sto Fac Low Low Zio Pro Fac Upp Combat Hostiles Destroyed 294 | . 11 . 35 9 . 8 29 34 43 2 20 18 . 24 57 4 Melee 1 | . . . . . . . . . . . . . . . 1 . Guns 120 | . 11 . 19 5 . 1 3 13 12 1 3 3 . 15 32 2 Cannons 127 | . . . 5 3 . 5 23 12 22 1 12 11 . 9 22 2 AOE 44 | . . . 11 1 . 1 3 9 9 . 5 4 . . 1 . Classes Destroyed 22 | . 5 . 4 2 . 1 2 1 3 . 1 2 1 . . . Worker 12 | . . . . 1 . . . 2 4 . . . . . 5 . Builder 12 | . . . 2 . . . . 6 2 . . . . . 2 . Tunneler 3 | . . . 1 . . . 1 . . 1 . . . . . . Hauler 5 | . 1 . . . . . . 1 2 . . . . . 1 . Recycler 13 | . 1 . 1 . . . 1 5 2 . . . . . 3 . Mechanic 1 | . . . . . . . . . 1 . . . . . . . Operator 9 | . . . 4 . . . 1 . 2 . . . . . 2 . Drone 3 | . . . . . . . . . 3 . . . . . . . Watcher 18 | . 3 . 4 . . . 5 2 1 . . . . . 3 . Swarmer 52 | . 2 . 11 3 . 2 4 3 1 . 9 . . 7 10 . Grunt 116 | . 9 . 15 . . 3 11 19 24 1 6 4 . 2 21 1 Brawler 7 | . . . . . . . 1 . 1 . . . . 1 4 . Duelist 12 | . . . . . . 3 2 2 1 . . 2 . . 2 . Protector 1 | . . . . . . . . . 1 . . . . . . . Sentry 34 | . . . 9 . . . 9 2 6 1 1 . . . 6 . Hunter 20 | . . . . . . . 2 2 6 . . . . 5 4 1 Programmer 20 | . . . . . . . . 6 3 . . 1 . . 10 . Behemoth 2 | . . . . . . . . . . . . 1 . . 1 . Zionite 1 | . . . . . . . . . . . . . 1 . . . Master Thief 24 | . . . . . . . . . . . 4 9 . 9 . 2 Assembled 6 | . . . . 6 . . . . . . . . . . . . Mutant 1 | . . . . . . . . . . . . 1 . . . . Best Kill Streak 11 | . 3 . 7 6 . 2 4 5 8 3 11 3 1 4 8 1 Combat Bots Only 11 | . 3 . 5 6 . 2 4 4 7 2 11 3 . 4 7 1 Max Kills in Single Turn 4 | . 1 . 4 2 . 1 2 4 4 2 2 2 1 1 4 1 Gunslinging . | . . . . . . . . . . . . . . . . . Exploded 2 | . . . 2 1 . 1 2 1 2 . 2 2 . . 1 . Melee 1 | . . . . . . . . . . . . . . . 1 . Uniques/NPCs Destroyed . | . . . . . . . . . . . . . . . . . Combat | -11 -10 -10 -9 -9 -9 -8 -8 -7 -7 -6 -6 -6 -6 -5 -5 -5 -------- Run | Scr Mat Min Mat Min Exi Min Mat Fac Sto Fac Low Low Zio Pro Fac Upp Damage Taken 10338 | . 206 14 686 187 . 139 167 1263 1369 30 588 384 1349 825 2348 783 Core 8073 | . 164 10 535 142 . 107 125 1004 1092 22 444 301 1039 634 1854 600 Absorbed by Shields . | . . . . . . . . . . . . . . . . . Redirected to Core 7224 | . 117 10 470 139 . 98 125 852 877 22 426 278 974 605 1640 591 Core Remaining (%) 86 | 100 . 100 . . . 100 100 . 75 . . . . 44 . . Volleys Fired 530 | . 40 2 57 9 1 20 91 62 57 3 24 29 1 45 82 7 Largest 10 | . 3 3 7 7 1 7 8 9 9 9 9 9 9 9 10 10 Hottest 537 | . 110 105 309 309 120 309 414 468 477 477 477 465 453 495 537 510 Shots Fired 3065 | . 120 6 275 63 1 38 157 326 441 27 193 260 9 331 750 68 Gun 1559 | . 120 6 213 36 . 12 48 168 200 12 74 87 3 143 402 35 Cannon 1301 | . . . 31 18 1 23 101 121 193 12 99 144 5 172 348 33 Launcher 205 | . . . 31 9 . 3 8 37 48 3 20 29 1 16 . . Special . | . . . . . . . . . . . . . . . . . Kinetic 1319 | . 40 2 96 18 . 6 22 83 144 9 78 116 5 163 488 49 Thermal 978 | . 25 . 34 18 1 23 107 133 153 9 53 58 2 108 235 19 Explosive . | . . . . . . . . . . . . . . . . . Electromagnetic 768 | . 55 4 145 27 . 9 28 110 144 9 62 86 2 60 27 . Robot Hit Streak 76 | . 19 19 21 12 . 24 19 40 43 10 30 29 . 23 76 24 Robot Miss Streak 4 | . 1 . 2 2 . 1 2 1 3 2 3 3 . 4 4 2 Penetration Max 2 | . . . . . . . . . . . . . . . 2 . Secondary Targets 2 | . 1 . 1 . . . . . . . . . . . . . Max Gunslinging Chain 1 | . 1 . 1 . . . . . . . . . . . . . Shots Hit Robots 1600 | . 73 6 153 19 . 29 39 177 210 21 95 139 . 197 395 47 Core Hits 670 | . 28 1 68 13 . 8 41 101 112 7 46 38 3 53 142 9 Critical Hits 27 | . . . 2 . . . 2 . 2 . 4 2 . 3 12 . Critical Kills 11 | . . . 1 . . . 1 . . . 1 1 . 3 4 . Critical Parts Destroyed 13 | . . . . . . . 1 . 2 . 3 1 . . 6 . Melee Attacks . | . . . . . . . . . . . . . . . . . Impact . | . . . . . . . . . . . . . . . . . Slashing . | . . . . . . . . . . . . . . . . . Piercing . | . . . . . . . . . . . . . . . . . Sneak Attacks . | . . . . . . . . . . . . . . . . . Combat Hostiles . | . . . . . . . . . . . . . . . . . Follow-up Attacks . | . . . . . . . . . . . . . . . . . Damage Inflicted 39786 | . 960 92 2989 359 . 866 2950 4494 6106 462 2711 2989 136 3918 9658 1096 Guns 14339 | . 960 92 1463 90 . 122 224 1174 1592 204 607 741 . 1435 5011 624 Cannons 18100 | . . . 414 146 . 632 2547 2052 2490 184 1128 1698 . 2153 4219 437 Explosions 7181 | . . . 1108 123 . 112 154 1266 2022 74 976 550 98 330 368 . Melee . | . . . . . . . . . . . . . . . . . Ramming 166 | . . . 4 . . . 25 2 2 . . . 38 . 60 35 Kinetic 13410 | . 325 29 881 146 . 74 266 577 1328 128 624 929 . 1482 5961 660 Thermal 16781 | . 264 . 484 38 . 703 2374 2272 2644 196 1052 1223 . 1745 3385 401 Explosive 373 | . . . 261 . . . . 99 13 . . . . . . . Electromagnetic 9056 | . 371 63 1359 175 . 89 285 1544 2119 138 1035 837 98 691 252 . Impact . | . . . . . . . . . . . . . . . . . Slashing . | . . . . . . . . . . . . . . . . . Piercing . | . . . . . . . . . . . . . . . . . Highest Corruption 8 | . . . 2 3 3 4 . 3 6 . . . 3 3 8 8 Average Corruption 2 | . . . 1 2 3 3 . 1 3 . . . 2 3 2 8 Corruption Purged . | . . . . . . . . . . . . . . . . . Effects 254 | . . . 13 15 12 11 . 23 52 . . . 2 40 69 17 Message Errors 62 | . . . 4 3 5 4 . 7 10 . . . 1 9 14 5 Matter Fused 44 | . . . . 4 5 3 . . 12 . . . 1 11 7 1 Heat Flow Errors 28 | . . . 5 2 1 . . 6 4 . . . . 4 4 2 Energy Discharges 24 | . . . 1 3 . 3 . 2 4 . . . . 5 6 . Parts Rejected 1 | . . . . . . . . . . . . . . . 1 . Data Loss (minor) 24 | . . . 1 2 1 . . 1 5 . . . . 2 9 3 Data Loss (major) 1 | . . . . . . . . . . . . . . . 1 . Misfires 1 | . . . . . . . . . 1 . . . . . . . Targeting Errors 62 | . . . 2 1 . 1 . 6 15 . . . . 7 24 6 Weapon Failures 7 | . . . . . . . . 1 1 . . . . 2 3 . Overload Shots . | . . . . . . . . . . . . . . . . . Overflow Damage 709 | . . . 41 . . 12 57 28 126 13 23 99 . 65 224 21 Projectiles 404 | . . . . . . 12 57 12 55 13 23 48 . 62 101 21 Explosions 286 | . . . 41 . . . . 16 71 . . 51 . 3 104 . Melee 19 | . . . . . . . . . . . . . . . 19 . Knockbacks 62 | . . . 5 2 . 2 . 6 6 . 7 9 . 9 10 6 Impact 1 | . . . . . . . . . . . . . . . . 1 Kinetic 58 | . . . 4 2 . 2 . 6 6 . 7 9 . 9 9 4 Secondary 3 | . . . 1 . . . . . . . . . . . 1 1 Self-Inflicted Damage 1019 | . . . 232 17 . 22 9 342 146 17 64 115 11 44 . . Shots 82 | . . . 8 2 . 2 2 18 21 2 8 13 1 5 . . Rammed 16 | . . . 1 . . . 4 1 1 . . . . . 6 3 Targets Rammed 20 | . 1 . 1 . . . 6 1 1 . . . 1 . 6 3 Kicked . | . . . . . . . . . . . . . . . . . Crushed 4 | . 1 . . . . . 2 . . . . . 1 . . . Highest Temperature 582 | . 247 24 279 240 179 169 232 582 267 81 75 252 156 198 319 159 Average Temperature 88 | . 80 12 76 101 69 68 80 144 64 37 18 61 87 110 105 48 Received Heat Transfer 2649 | . 165 12 210 . . 54 117 198 426 9 72 129 414 72 465 306 Effects 15 | . 2 . . . . . . 13 . . . . . . . . Shutdowns 5 | . . . . . . . . 5 . . . . . . . . Energy Bleed 1 | . . . . . . . . 1 . . . . . . . . Interference 6 | . 2 . . . . . . 4 . . . . . . . . Matter Decay 2 | . . . . . . . . 2 . . . . . . . . Damage (core) 1 | . . . . . . . . 1 . . . . . . . . Siege Activations . | . . . . . . . . . . . . . . . . . Robots Corrupted 1 | . . . . . . . . . 1 . . . . . . . Combat Hostiles . | . . . . . . . . . . . . . . . . . Parts Fried 23 | . . . 5 . . . . 6 6 . 3 2 . 1 . . Impact Corruptions 2 | . . . . . . . . . . . . . . . 2 . Robots Melted 2 | . . . . . . 1 . . . . . . . . 1 . Combat Hostiles 2 | . . . . . . 1 . . . . . . . . 1 . Parts Melted 31 | . . . 1 . . 3 9 5 2 . . . . 5 6 . Heat Transferred 25897 | . 777 . 522 100 . 1497 5311 3830 3313 259 1262 1458 . 2220 4728 620 Parts Sabotaged . | . . . . . . . . . . . . . . . . . Parts Stolen 12 | . . . . . . . . . . . . 6 . 4 . 2 Parts Stripped . | . . . . . . . . . . . . . . . . . Power Chain Reactions 55 | . . . 15 1 . 1 . 9 17 . 6 5 . 1 . . Missiles Intercepted . | . . . . . . . . . . . . . . . . . Alert | -11 -10 -10 -9 -9 -9 -8 -8 -7 -7 -6 -6 -6 -6 -5 -5 -5 ------- Run | Scr Mat Min Mat Min Exi Min Mat Fac Sto Fac Low Low Zio Pro Fac Upp Peak Influence 695 | . 154 52 419 90 . 120 278 455 647 102 . . . . 695 . Average Influence 133 | . 35 7 133 48 . 35 79 123 403 66 . . . . 191 . Maximum Alert Level 2 | . . . 2 . . . 1 2 2 . . . . . 2 . Low Security (%) 76 | 100 100 100 78 100 . 100 84 78 4 100 . . . . 66 . Level 1 13 | . . . 18 . . . 15 17 33 . . . . . 12 . Level 2 10 | . . . 3 . . . . 3 62 . . . . . 20 . Level 3 . | . . . . . . . . . . . . . . . . . Level 4 . | . . . . . . . . . . . . . . . . . Level 5 . | . . . . . . . . . . . . . . . . . High Security . | . . . . . . . . . . . . . . . . . Max Security . | . . . . . . . . . . . . . . . . . Squads Dispatched 55 | . 1 . 5 . . . 3 15 12 3 . . . . 16 . Investigation 15 | . 1 . . . . . 1 3 3 1 . . . . 6 . Extermination 13 | . . . . . . . . 5 3 . . . . . 5 . Reinforcement 23 | . . . 5 . . . 2 7 4 2 . . . . 3 . Assault 3 | . . . . . . . . . 2 . . . . . 1 . Garrison 1 | . . . . . . . . . . . . . . . 1 . Intercept . | . . . . . . . . . . . . . . . . . Construction Impeded 8 | . . . 1 . . . . 5 1 . . . . . 1 . Haulers Reinforced 3 | . . . . . . . . 2 . . . . . . 1 . Stealth | -11 -10 -10 -9 -9 -9 -8 -8 -7 -7 -6 -6 -6 -6 -5 -5 -5 --------- Run | Scr Mat Min Mat Min Exi Min Mat Fac Sto Fac Low Low Zio Pro Fac Upp Distress Signals 22 | . 1 . 4 . . . 5 1 5 1 . . . . 5 . Communications Jammed . | . . . . . . . . . . . . . . . . . Distress Signals . | . . . . . . . . . . . . . . . . . Times Spotted 398 | . 18 2 48 9 . 8 27 44 62 3 23 20 22 29 74 9 Peak Tracking Total 18 | . 3 2 4 3 . 2 3 4 9 3 13 3 18 4 8 6 Tactical Retreats 12 | . 1 . 1 . . . . 1 3 1 2 . 3 . . . Traps | -11 -10 -10 -9 -9 -9 -8 -8 -7 -7 -6 -6 -6 -6 -5 -5 -5 ------- Run | Scr Mat Min Mat Min Exi Min Mat Fac Sto Fac Low Low Zio Pro Fac Upp Traps Triggered 14 | . . . 2 . . . 2 7 2 . 1 . . . . . Indirectly 4 | . . . . . . . 1 2 . . 1 . . . . . Trap Hack Attempts . | . . . . . . . . . . . . . . . . . Triggered . | . . . . . . . . . . . . . . . . . Disarmed 9 | . 9 . . . . . . . . . . . . . . . Reprogrammed . | . . . . . . . . . . . . . . . . . Reused . | . . . . . . . . . . . . . . . . . Traps Extracted . | . . . . . . . . . . . . . . . . . Installed . | . . . . . . . . . . . . . . . . . Triggered 2 | . . . . . . . . 2 . . . . . . . . Power Sources Rigged 29 | . . . . . . . 12 5 12 . . . . . . . Exploded 10 | . . . . . . . 3 1 6 . . . . . . . Machines | -11 -10 -10 -9 -9 -9 -8 -8 -7 -7 -6 -6 -6 -6 -5 -5 -5 ---------- Run | Scr Mat Min Mat Min Exi Min Mat Fac Sto Fac Low Low Zio Pro Fac Upp Machines Disabled 68 | . . . 11 . . . 2 27 7 1 3 . . . 17 . Max in Single Turn 5 | . . . 3 . . . 1 5 2 1 1 . . . 4 . Garrison Access 1 | . . . . . . . . . . . . . . . 1 . Machines Sabotaged . | . . . . . . . . . . . . . . . . . Garrisons Compromised . | . . . . . . . . . . . . . . . . . Overloaded Fab Kills . | . . . . . . . . . . . . . . . . . Fab Network Shutdowns 1 | . . . . . . . . 1 . . . . . . . . Hacking | -11 -10 -10 -9 -9 -9 -8 -8 -7 -7 -6 -6 -6 -6 -5 -5 -5 --------- Run | Scr Mat Min Mat Min Exi Min Mat Fac Sto Fac Low Low Zio Pro Fac Upp Machines Accessed 50 | . 7 . 5 . 1 1 6 8 5 1 1 1 . . 13 1 Terminals 40 | . 7 . 5 . . 1 6 6 5 1 1 . . . 8 . Fabricators 3 | . . . . . . . . 1 . . . . . . 2 . Repair Stations . | . . . . . . . . . . . . . . . . . Recycling Units 4 | . . . . . . . . 1 . . . . . . 3 . Scanalyzers . | . . . . . . . . . . . . . . . . . Garrison Access . | . . . . . . . . . . . . . . . . . Total Hacks 110 | . 20 . 9 . 1 1 12 16 11 2 1 1 . . 35 1 Successful 70 | . 14 . 5 . 1 1 8 10 4 1 1 1 . . 23 1 Failed 40 | . 6 . 4 . . . 4 6 7 1 . . . . 12 . Catastrophic 8 | . . . . . . . 1 1 1 . . . . . 5 . Database Lockouts . | . . . . . . . . . . . . . . . . . Manual 66 | . 2 . 5 . 5 1 7 7 10 2 1 . 13 . 13 . Terminals 97 | . 20 . 9 . . 1 12 13 11 2 1 . . . 28 . Fabricators 4 | . . . . . . . . 1 . . . . . . 3 . Repair Stations . | . . . . . . . . . . . . . . . . . Recycling Units 6 | . . . . . . . . 2 . . . . . . 4 . Scanalyzers . | . . . . . . . . . . . . . . . . . Garrison Access . | . . . . . . . . . . . . . . . . . Terminal Hacks 61 | . 14 . 5 . 1 1 8 7 4 1 1 1 . . 17 1 Record 6 | . . . . . . . . . 2 . . . . . 4 . Robot Analysis 2 | . 1 . . . . . . . . . . . . . 1 . Prototype ID Bank 7 | . 3 . . . . . 2 2 . . . . . . . . Open Door 3 | . . . . . . . . . 1 . . 1 . . . 1 Branch Access Points 6 | . . . . . . 1 1 1 1 1 1 . . . . . Repair Station Index 2 | . . . . . . . . 1 . . . . . . 1 . Alert Level 3 | . . . . . . . . 1 . . . . . . 2 . Unreport Threat 6 | . . . . . . . . . . . . . . . 6 . Locate Traps 14 | . 4 . 3 . . . 4 2 . . . . . . 1 . Disarm Traps 2 | . 2 . . . . . . . . . . . . . . . Dispatch Records 1 | . 1 . . . . . . . . . . . . . . . Maintenance Status 1 | . . . . . . . . . . . . . . . 1 . Surveillance Status 1 | . 1 . . . . . . . . . . . . . . . Investigation Status 1 | . . . 1 . . . . . . . . . . . . . Reinforcement Status 1 | . 1 . . . . . . . . . . . . . . . Recall Reinforcements 1 | . . . . . . . . . . . . . . . 1 . Registered Components 2 | . . . 1 . . . 1 . . . . . . . . . Zone Layout 1 | . 1 . . . . . . . . . . . . . . . EX-Prototype ID Bank 1 | . . . . . 1 . . . . . . . . . . . Fabricator Hacks 3 | . . . . . . . . 1 . . . . . . 2 . Build 3 | . . . . . . . . 1 . . . . . . 2 . Repair Station Hacks . | . . . . . . . . . . . . . . . . . Recycling Unit Hacks 6 | . . . . . . . . 2 . . . . . . 4 . Process 3 | . . . . . . . . 1 . . . . . . 2 . Report Inventory 2 | . . . . . . . . 1 . . . . . . 1 . Retrieve Components 1 | . . . . . . . . . . . . . . . 1 . Scanalyzer . | . . . . . . . . . . . . . . . . . Garrison Access Hacks . | . . . . . . . . . . . . . . . . . Unauthorized Hacks . | . . . . . . . . . . . . . . . . . Terminals . | . . . . . . . . . . . . . . . . . Fabricators . | . . . . . . . . . . . . . . . . . Repair Stations . | . . . . . . . . . . . . . . . . . Recycling Units . | . . . . . . . . . . . . . . . . . Scanalyzers . | . . . . . . . . . . . . . . . . . Garrison Access . | . . . . . . . . . . . . . . . . . Data Cores Recovered 3 | . . . 1 . . . . . . . . . . . 2 . Used 1 | . . . . . . . . . . . . . . . 1 . Hacking Detections 39 | . 8 . 4 . . . 4 7 6 . . . . . 10 . Full Trace Events 14 | . 2 . . . . . 1 2 3 . . . . . 6 . Feedback Events . | . . . . . . . . . . . . . . . . . Feedback Blocked . | . . . . . . . . . . . . . . . . . Robot Schematics Acquired . | . . . . . . . . . . . . . . . . . Robots Built 4 | . . . . . . . . . . . . . . . 4 . Matter 471 | . . . . . . . . . . . . . . . 471 . Time 209 | . . . . . . . . . . . . . . . 209 . Total Robot Build Rating 19 | . . . . . . . . . . . . . . . 19 . Part Schematics Acquired . | . . . . . . . . . . . . . . . . . Parts Built 2 | . . . . . . . . 2 . . . . . . . . Matter 212 | . . . . . . . . 212 . . . . . . . . Time 53 | . . . . . . . . 53 . . . . . . . . Total Part Build Rating 12 | . . . . . . . . 12 . . . . . . . . Parts Repaired . | . . . . . . . . . . . . . . . . . Time . | . . . . . . . . . . . . . . . . . Parts Recycled . | . . . . . . . . . . . . . . . . . Recycled Matter 570 | . . . . . . . . 23 . . . . . . 547 . Retrieved Matter . | . . . . . . . . . . . . . . . . . Retrieved Components 10 | . . . . . . . . . . . . . . . 10 . Parts Scanalyzed . | . . . . . . . . . . . . . . . . . Part Schematics Acquired . | . . . . . . . . . . . . . . . . . Parts Damaged . | . . . . . . . . . . . . . . . . . Bothacking | -11 -10 -10 -9 -9 -9 -8 -8 -7 -7 -6 -6 -6 -6 -5 -5 -5 ------------ Run | Scr Mat Min Mat Min Exi Min Mat Fac Sto Fac Low Low Zio Pro Fac Upp Used RIF Installer . | . . . . . . . . . . . . . . . . . Robots Hacked . | . . . . . . . . . . . . . . . . . Non-combat . | . . . . . . . . . . . . . . . . . Combat . | . . . . . . . . . . . . . . . . . Robot Hacks Applied . | . . . . . . . . . . . . . . . . . Relay Couplers Released . | . . . . . . . . . . . . . . . . . Robots Rewired . | . . . . . . . . . . . . . . . . . Allies Hacked . | . . . . . . . . . . . . . . . . . Hacks Repelled . | . . . . . . . . . . . . . . . . . Allies | -11 -10 -10 -9 -9 -9 -8 -8 -7 -7 -6 -6 -6 -6 -5 -5 -5 -------- Run | Scr Mat Min Mat Min Exi Min Mat Fac Sto Fac Low Low Zio Pro Fac Upp Total Allies 15 | . . 3 . . . . . . 2 . . . 6 . 4 . Largest Group 6 | . . 3 3 . . . . . 2 . . . 6 . 3 . Highest-Rated Group 333 | . . 40 40 . . . . . 62 . . . 333 . 90 . Highest-Rated Ally 94 | . . 16 16 . . . . . 31 . . . 94 . 30 . Total Orders 26 | . . . . . . . . . 21 3 . . . . 1 1 FOLLOW 10 | . . . . . . . . . 10 . . . . . . . EXPLORE 16 | . . . . . . . . . 11 3 . . . . 1 1 Ally Attacks 62 | . . 12 15 . . . . . 3 . . . 3 . 29 . Total Damage 955 | . . 119 158 . . . . . 62 . . . 93 . 523 . Kills 7 | . . 2 2 . . . . . . . . . . . 3 . Allies Corrupted 1 | . . . . . . . . . . . . . 1 . . . Allies Melted . | . . . . . . . . . . . . . . . . . Intel | -11 -10 -10 -9 -9 -9 -8 -8 -7 -7 -6 -6 -6 -6 -5 -5 -5 ------- Run | Scr Mat Min Mat Min Exi Min Mat Fac Sto Fac Low Low Zio Pro Fac Upp Robot Analysis Total 2 | . 1 . . . . . . . . . . . . . 1 . Derelict Logs Recovered 5 | . . 1 . 1 . . . . . . . 1 . 2 . . Drone Launches 28 | . . . . . . . . . 16 . . . . . 3 9 Drone Recoveries . | . . . . . . . . . . . . . . . . . Exploration | -11 -10 -10 -9 -9 -9 -8 -8 -7 -7 -6 -6 -6 -6 -5 -5 -5 ------------- Run | Scr Mat Min Mat Min Exi Min Mat Fac Sto Fac Low Low Zio Pro Fac Upp Turns Passed 27119 | 121 1993 815 2397 1095 543 663 2290 3097 1664 287 1746 1376 3297 1936 3438 361 Spaces Moved 13672 | 87 1122 498 1137 577 296 309 1075 1420 712 151 941 689 1880 1036 1554 188 Core 25 | 25 . . . . . . . . . . . . . . . . Treads 13647 | 62 1122 498 1137 577 296 309 1075 1420 712 151 941 689 1880 1036 1554 188 Legs . | . . . . . . . . . . . . . . . . . Wheels . | . . . . . . . . . . . . . . . . . Hover . | . . . . . . . . . . . . . . . . . Flight . | . . . . . . . . . . . . . . . . . Fastest Speed 50 | 50 160 160 160 180 180 180 180 160 160 180 160 160 160 160 162 163 Average Speed 167 | 128 160 160 163 180 180 180 180 173 171 180 163 160 160 161 176 163 Slowest Speed 182 | 160 160 160 180 180 180 180 180 180 180 180 180 160 160 162 182 163 Overloaded Moves . | . . . . . . . . . . . . . . . . . Propulsion Burnouts . | . . . . . . . . . . . . . . . . . Robots Hopped . | . . . . . . . . . . . . . . . . . Cave-ins Triggered 2 | . . . . . . . . . 1 . . . . . 1 . Exploration Rate (%) 68 | 4 98 99 90 91 63 80 81 38 77 33 85 73 93 92 38 29 Regions Visited 16 Branch Regions 10 Pre-discovered Areas 5 | . . 1 . . . . . . . . . 1 3 . . . Known Exits Taken 16 | 1 1 1 1 1 1 1 1 1 1 1 1 1 1 1 1 . Unknown Exits Taken . | . . . . . . . . . . . . . . . . . Scrap Searched 10 | . . . . 2 . . . . . . 2 1 2 3 . . Spaces Dug 12 | . . . . . . . 1 . 1 . 7 . . . 3 . Terrain Destroyed 916 | . . . 102 7 . 5 6 115 170 2 68 81 . 78 257 25 Melee . | . . . . . . . . . . . . . . . . . Projectile 418 | . . . . 4 . . 6 25 87 2 45 56 . 67 101 25 AOE 498 | . . . 102 3 . 5 . 90 83 . 23 25 . 11 156 . Actions | -11 -10 -10 -9 -9 -9 -8 -8 -7 -7 -6 -6 -6 -6 -5 -5 -5 --------- Run | Scr Mat Min Mat Min Exi Min Mat Fac Sto Fac Low Low Zio Pro Fac Upp Total 16557 | 93 1229 512 1521 607 305 390 1311 1924 996 158 1084 873 2166 1164 2005 219 Wait 1733 | . 45 11 276 18 . 42 101 351 115 3 93 112 271 35 251 9 Move 13656 | 86 1121 497 1136 576 295 308 1074 1419 711 150 940 688 1879 1035 1553 188 Hop . | . . . . . . . . . . . . . . . . . Pick Up 2 | . 1 . . . . . . 1 . . . . . . . . Fast Attach 108 | 7 4 . 14 . 5 2 9 14 12 . 3 9 4 5 16 4 Attach 1 | . . . . . . . . 1 . . . . . . . . Detach 3 | . . . . . . . 1 2 . . . . . . . . Swap 8 | . . . . . . . . 2 . 1 . . 1 . 3 1 Drop 73 | . 4 . 6 . 4 2 3 15 10 1 2 3 4 1 15 3 Fire 530 | . 40 2 57 9 1 20 91 62 57 3 24 29 1 45 82 7 Melee . | . . . . . . . . . . . . . . . . . Ram . | . . . . . . . . . . . . . . . . . Kick . | . . . . . . . . . . . . . . . . . Crush 20 | . 1 . 1 . . . 6 1 1 . . . 1 . 6 3 Escape Stasis 2 | . . . . . . . . 2 . . . . . . . . Rewire 6 | . . . . . . . . . . . . . 5 1 . . Trap 29 | . . . . . . . 12 5 12 . . . . . . . Miscellaneous 386 | . 13 2 31 4 . 16 14 49 78 . 22 32 . 42 79 4 Route ------- -11/Scrapyard -10/Materials (discovered 4 exits: *Mat x3 / *Min) -10/Mines (discovered 2 exits: *Mat x2) -9/Materials (discovered 5 exits: *Mat x3 / *Min x2) -9/Mines (discovered 2 exits: *Mat / *Exi) -9/Exiles (discovered 2 exits: *Min x2) -8/Mines (discovered 2 exits: *Mat x2) -8/Materials (discovered 3 exits: *Fac x3) -7/Factory (discovered 6 exits: *Fac x2 / *Sto x2 / *Low x2) -7/Storage (discovered 2 exits: *Fac / Rec) -6/Factory (discovered 3 exits: *Fac / *Low x2) -6/Lower Caves -6/Lower Caves (discovered 2 exits: *Fac / *Zio) -6/Zion (discovered 2 exits: Dee / *Pro) -5/Proximity Caves -5/Factory (discovered 3 exits: *Fac / *Upp x2) -5/Upper Caves History --------- Turn | Location | Event 7 | -11/Scrapyard | Identified exit to Materials 7 | -11/Scrapyard | Discovered exit to Materials (range 14) 70 | -11/Scrapyard | Upgraded with Propulsion slot (x1) 76 | -11/Scrapyard | Upgraded with Weapon slot (x1) 82 | -11/Scrapyard | Upgraded with Weapon slot (x1) 122 | -11/Scrapyard | Entered Materials 313 | -10/Materials | Build established: Hacker-Gunner 839 | -10/Materials | Identified exit to Materials 839 | -10/Materials | Discovered exit to Materials (range 12) 1095 | -10/Materials | Identified exit to Mines 1095 | -10/Materials | Discovered exit to Mines (range 6) 1235 | -10/Materials | Discovered exit to Materials (range 14) 1921 | -10/Materials | Discovered exit to Materials (range 4) 2115 | -10/Materials | Entered Mines 2117 | -10/Mines | Reached level 2 2251 | -10/Mines | Learned Materials stockpile data 2256 | -10/Mines | Assisted by bots powering up and referring to "LRC-V3" 2302 | -10/Mines | Found a hidden stash of uninstalled traps 2318 | -10/Mines | Discovered exit to Materials (range 11) 2518 | -10/Mines | Received a Rocket Launcher from a helpful Derelict 2703 | -10/Mines | Discovered exit to Materials (range 4) 2811 | -10/Mines | Learned location of Storage (-7) 2930 | -10/Mines | Entered Materials 2930 | -9/Materials | Accompanied by 3 allies 2932 | -9/Materials | Reached level 3 2932 | -9/Materials | Reached level 4 3299 | -9/Materials | Upgraded with Weapon slot (x1) 3326 | -9/Materials | Upgraded with Weapon slot (x1) 3374 | -9/Materials | Reached level 5 3400 | -9/Materials | Identified exit to Mines 3400 | -9/Materials | Discovered exit to Mines (range 9) 3463 | -9/Materials | Upgraded with Weapon slot (x1) 3522 | -9/Materials | Upgraded with Power slot (x1) 3593 | -9/Materials | Identified exit to Materials 3593 | -9/Materials | Discovered exit to Materials (range 5) 3775 | -9/Materials | Build established: Hacker-Executioner 4321 | -9/Materials | Discovered exit to Materials (range 15) 4609 | -9/Materials | Reached level 6 4853 | -9/Materials | Reached level 7 4878 | -9/Materials | Discovered exit to Materials (range 16) 4896 | -9/Materials | Upgraded with Weapon slot (x1) 4915 | -9/Materials | Upgraded with Utility slot (x1) 5235 | -9/Materials | Discovered exit to Mines (range 16) 5327 | -9/Materials | Entered Mines 5382 | -9/Mines | Assembled infested the area 5446 | -9/Mines | A weapon hastily lodged in a ceiling crevice suddenly fell to the ground 5488 | -9/Mines | Learned Materials garrison access intel 6231 | -9/Mines | Discovered exit to Materials (range 16) 6411 | -9/Mines | Deemed a non-threat by the Exiles lab entrance 6413 | -9/Mines | Identified exit to Exiles 6413 | -9/Mines | Discovered exit to Exiles (range 5) 6422 | -9/Mines | Entered Exiles 6424 | -9/Exiles | Reached level 8 6446 | -9/Exiles | Identified exit to Mines 6446 | -9/Exiles | Discovered exit to Mines (range 15) 6467 | -9/Exiles | Met 8R-AWN 6498 | -9/Exiles | Met EX-HEX 6570 | -9/Exiles | Met EX-BIN 6592 | -9/Exiles | Aligned with FarCom system 6593 | -9/Exiles | Given EX-Vault access code 6655 | -9/Exiles | Opened EX-Vault 6664 | -9/Exiles | Found Prototype Energy Cannon 6664 | -9/Exiles | Identified Gui. Plasma Cannon 6667 | -9/Exiles | Upgraded with Weapon slot (x1) 6686 | -9/Exiles | Found Prototype Device 6686 | -9/Exiles | Identified Cloak of Protection 6699 | -9/Exiles | Found Prototype Device 6699 | -9/Exiles | Identified PSU Rigger 6817 | -9/Exiles | Warned to stay clear of 0b10 Research branches 6870 | -9/Exiles | Met EX-DEC 6947 | -9/Exiles | Discovered exit to Mines (range 12) 6961 | -9/Exiles | Build established: Hacker-Mutant 6965 | -9/Exiles | Stole two prototypes: Gui. Plasma Cannon, PSU Rigger 6965 | -9/Exiles | Entered Mines 7288 | -8/Mines | Discovered exit to Materials (range 8) 7487 | -8/Mines | Discovered exit to Materials (range 10) 7498 | -8/Mines | Reached level 9 7628 | -8/Mines | Entered Materials 7629 | -8/Materials | Loaded intel: 1 garrison access location 7630 | -8/Materials | Reached level 10 7696 | -8/Materials | Upgraded with Weapon slot (x1) 7902 | -8/Materials | Upgraded with Utility slot (x1) 8031 | -8/Materials | Reached level 11 8368 | -8/Materials | Identified exit to Factory 8368 | -8/Materials | Discovered exit to Factory (range 9) 8652 | -8/Materials | Upgraded with Utility slot (x1) 8890 | -8/Materials | Discovered exit to Factory (range 19) 9064 | -8/Materials | Reached level 12 9586 | -8/Materials | Upgraded with Propulsion slot (x1) 9745 | -8/Materials | Discovered exit to Factory (range 16) 9918 | -8/Materials | Entered Factory 9920 | -7/Factory | FarCom data flow suspended 9920 | -7/Factory | Reached level 13 10016 | -7/Factory | Fabricated Imp. Launcher Guidance Computer (x2) 10217 | -7/Factory | Local fabrication network quarantined 10331 | -7/Factory | Identified exit to Storage 10331 | -7/Factory | Identified exit to Lower Caves 11275 | -7/Factory | Reached level 14 11472 | -7/Factory | Upgraded with Utility slot (x1) 11669 | -7/Factory | Identified exit to Factory 11669 | -7/Factory | Discovered exit to Factory (range 17) 11696 | -7/Factory | Build established: Hacker-Executioner 11866 | -7/Factory | Reached level 15 12464 | -7/Factory | Discovered exit to Factory (range 17) 12769 | -7/Factory | Core integrity fell below 50% 13015 | -7/Factory | Entered Storage 13209 | -7/Storage | Reached level 16 13750 | -7/Storage | Discovered exit to Factory (range 17) 13763 | -7/Storage | Met a pair of Derelict thieves 13839 | -7/Storage | Destroyed 7 combat bots 13899 | -7/Storage | Upgraded with Utility slot (x1) 14206 | -7/Storage | Crushed by falling debris 14286 | -7/Storage | Identified exit to Recycling 14286 | -7/Storage | Discovered exit to Recycling (range 15) 14639 | -7/Storage | Reached level 17 14679 | -7/Storage | Entered Factory 14679 | -6/Factory | Accompanied by 10 allies 14790 | -6/Factory | Identified exit to Factory 14790 | -6/Factory | Discovered exit to Factory (range 107) 14798 | -6/Factory | Identified exit to Lower Caves 14798 | -6/Factory | Discovered exit to Lower Caves (range 40) 14966 | -6/Factory | Entered Lower Caves 14968 | -6/Lower Caves | Reached level 18 15200 | -6/Lower Caves | Attracted the attention of an 0b10 base 15200 | -6/Lower Caves | Identified exit to Lower Caves 15264 | -6/Lower Caves | Destroyed 11 combat bots 15294 | -6/Lower Caves | Upgraded with Propulsion slot (x1) 15440 | -6/Lower Caves | Spotted 2Q-5VN(f) 15441 | -6/Lower Caves | Encountered a Master Thief 15441 | -6/Lower Caves | Spotted 4K-LXK(f) 15442 | -6/Lower Caves | Encountered a Master Thief 15446 | -6/Lower Caves | Destroyed 2Q-5VN(f) 16144 | -6/Lower Caves | Encountered a Warlord checkpoint 16179 | -6/Lower Caves | Destroyed 4K-LXK(f) 16266 | -6/Lower Caves | Spotted 14-YXN(f) 16267 | -6/Lower Caves | Encountered a Master Thief 16267 | -6/Lower Caves | Destroyed 14-YXN(f) 16273 | -6/Lower Caves | Spotted 3P-6UX(f) 16274 | -6/Lower Caves | Encountered a Master Thief 16278 | -6/Lower Caves | Destroyed 3P-6UX(f) 16712 | -6/Lower Caves | Entered another Lower Caves area 16740 | -6/Lower Caves | Learned location of Zion (-6) 16799 | -6/Lower Caves | Discovered exit to Factory (range 17) 17264 | -6/Lower Caves | Encountered a Warlord checkpoint 17309 | -6/Lower Caves | Reached level 19 17318 | -6/Lower Caves | Upgraded with Power slot (x1) 17440 | -6/Lower Caves | Spotted B-75 Beast 17449 | -6/Lower Caves | Destroyed B-75 Beast 17488 | -6/Lower Caves | Spotted 9Z-QKU(f) 17490 | -6/Lower Caves | Encountered a Master Thief 17492 | -6/Lower Caves | Spotted YC-E95(f) 17493 | -6/Lower Caves | Encountered a Master Thief 17493 | -6/Lower Caves | PSU Rigger stolen by Master Thief 17493 | -6/Lower Caves | Destroyed 9Z-QKU(f) 17501 | -6/Lower Caves | Destroyed YC-E95(f) 17503 | -6/Lower Caves | Spotted DJ-E10(f) 17504 | -6/Lower Caves | Encountered a Master Thief 17505 | -6/Lower Caves | Spotted CG-BTP(f) 17506 | -6/Lower Caves | Encountered a Master Thief 17509 | -6/Lower Caves | Neutrino Core stolen by Master Thief 17516 | -6/Lower Caves | Destroyed DJ-E10(f) 17715 | -6/Lower Caves | Spotted VZ-UNZ(f) 17716 | -6/Lower Caves | Encountered a Master Thief 17717 | -6/Lower Caves | Destroyed VZ-UNZ(f) 17718 | -6/Lower Caves | Spotted 2X-566(f) 17719 | -6/Lower Caves | Encountered a Master Thief 17720 | -6/Lower Caves | PSU Rigger stolen by Master Thief 17721 | -6/Lower Caves | Destroyed 2X-566(f) 17797 | -6/Lower Caves | Spotted J1-5AE(f) 17798 | -6/Lower Caves | Encountered a Master Thief 17798 | -6/Lower Caves | Spotted ZY-7JQ(f) 17799 | -6/Lower Caves | Encountered a Master Thief 17802 | -6/Lower Caves | Adv. Heat Sink stolen by Master Thief 17806 | -6/Lower Caves | Destroyed ZY-7JQ(f) 17913 | -6/Lower Caves | Spotted LS-400(f) 17914 | -6/Lower Caves | Encountered a Master Thief 17914 | -6/Lower Caves | Destroyed LS-400(f) 17933 | -6/Lower Caves | Spotted KV-NTH(f) 17934 | -6/Lower Caves | Encountered a Master Thief 17938 | -6/Lower Caves | Destroyed KV-NTH(f) 17948 | -6/Lower Caves | Identified exit to Zion 17948 | -6/Lower Caves | Discovered exit to Zion (range 17) 18041 | -6/Lower Caves | Build established: Scavenger-Executioner 18063 | -6/Lower Caves | Spotted 2I-67I(f) 18064 | -6/Lower Caves | Encountered a Master Thief 18064 | -6/Lower Caves | Spotted YZ-I28(f) 18065 | -6/Lower Caves | Encountered a Master Thief 18066 | -6/Lower Caves | Magnetic Acceleration Cannon stolen by Master Thief 18067 | -6/Lower Caves | Lgt. Fission Core stolen by Master Thief 18067 | -6/Lower Caves | Destroyed YZ-I28(f) 18088 | -6/Lower Caves | Entered Zion 18237 | -6/Zion | Found Prototype Device 18237 | -6/Zion | Identified Bomb Factory No. 2 18238 | -6/Zion | Identified exit to Proximity Caves 18238 | -6/Zion | Discovered exit to Proximity Caves (range 16) 18494 | -6/Zion | Given A8's code to call for help 18711 | -6/Zion | Learned location of Warlord (-4) 18796 | -6/Zion | Received a visual enhancement algorithm 18802 | -6/Zion | Enhanced Grunt warped into view, answering call for help 18804 | -6/Zion | Identified exit to Deep Caves 18804 | -6/Zion | Discovered exit to Deep Caves (range 20) 18811 | -6/Zion | Enhanced Grunt warped into view, answering call for help 18813 | -6/Zion | Learned Factory emergency access door positions 18923 | -6/Zion | Visited the Megawrench Repair Shop 18933 | -6/Zion | Megawrench repaired 17 parts 18995 | -6/Zion | Learned location of Armory (-4) 19541 | -6/Zion | Imprinted 19543 | -6/Zion | Declared Zion's savior 19840 | -6/Zion | Build established: Messiah-Executioner 21149 | -6/Zion | Attacked by Zionites 21240 | -6/Zion | Core integrity fell below 50% 21293 | -6/Zion | Spotted ON-4WO(B) 21323 | -6/Zion | Core integrity fell below 20% 21385 | -6/Zion | Entered Proximity Caves 21451 | -5/Proximity Caves | Build established: Scavenger-Executioner 21554 | -5/Proximity Caves | Spotted B-75 Beast 21633 | -5/Proximity Caves | Spotted 2M-4TH(f) 21634 | -5/Proximity Caves | Encountered a Master Thief 21634 | -5/Proximity Caves | Destroyed 2M-4TH(f) 21648 | -5/Proximity Caves | Spotted DV-WXO(f) 21649 | -5/Proximity Caves | Encountered a Master Thief 21649 | -5/Proximity Caves | Destroyed DV-WXO(f) 21710 | -5/Proximity Caves | Reached level 20 21863 | -5/Proximity Caves | Discovered exit to Factory (range 20) 21956 | -5/Proximity Caves | Spotted I4-UYT(f) 21957 | -5/Proximity Caves | Encountered a Master Thief 21958 | -5/Proximity Caves | Spotted 2D-CIO(f) 21959 | -5/Proximity Caves | Encountered a Master Thief 21961 | -5/Proximity Caves | Destroyed I4-UYT(f) 21962 | -5/Proximity Caves | Lgt. Antimatter Reactor stolen by Master Thief 21965 | -5/Proximity Caves | Destroyed 2D-CIO(f) 22109 | -5/Proximity Caves | Spotted MC-GQP(f) 22110 | -5/Proximity Caves | Encountered a Master Thief 22111 | -5/Proximity Caves | Magnetic Acceleration Cannon stolen by Master Thief 22112 | -5/Proximity Caves | Spotted C9-4IH(f) 22113 | -5/Proximity Caves | Encountered a Master Thief 22117 | -5/Proximity Caves | EMP Blaster stolen by Master Thief 22185 | -5/Proximity Caves | Spotted B6-NXT(f) 22187 | -5/Proximity Caves | Encountered a Master Thief 22197 | -5/Proximity Caves | Destroyed B6-NXT(f) 22260 | -5/Proximity Caves | Spotted 3K-5U8(f) 22261 | -5/Proximity Caves | Encountered a Master Thief 22262 | -5/Proximity Caves | Hvy. Phase Cannon stolen by Master Thief 22264 | -5/Proximity Caves | Destroyed 3K-5U8(f) 22368 | -5/Proximity Caves | Learned Factory stockpile data 22375 | -5/Proximity Caves | Learned 8 Factory zone layouts 23191 | -5/Proximity Caves | Spotted GU-R97(f) 23192 | -5/Proximity Caves | Encountered a Master Thief 23196 | -5/Proximity Caves | Spotted K2-9T0(f) 23197 | -5/Proximity Caves | Encountered a Master Thief 23200 | -5/Proximity Caves | Destroyed GU-R97(f) 23204 | -5/Proximity Caves | Destroyed K2-9T0(f) 23224 | -5/Proximity Caves | Spotted 2R-ELA(f) 23225 | -5/Proximity Caves | Encountered a Master Thief 23227 | -5/Proximity Caves | Destroyed 2R-ELA(f) 23321 | -5/Proximity Caves | Entered Factory 23322 | -5/Factory | Identified exit to Upper Caves 23322 | -5/Factory | Core integrity fell below 50% 23323 | -5/Factory | Reached level 21 23435 | -5/Factory | Upgraded with Weapon slot (x1) 23549 | -5/Factory | Fabricated B-60 Warrior? 23871 | -5/Factory | Reached level 22 23954 | -5/Factory | Identified exit to Factory 23954 | -5/Factory | Discovered exit to Factory (range 17) 23956 | -5/Factory | Garrison activated, responded to threat 23985 | -5/Factory | Destroyed 7 combat bots 24197 | -5/Factory | Build established: Hacker-Executioner 24604 | -5/Factory | Fabricated A-02 Transporter? 25383 | -5/Factory | Spotted B-75 Beast 25406 | -5/Factory | Destroyed B-75 Beast 25883 | -5/Factory | Reached level 23 26259 | -5/Factory | Crushed by falling debris 26302 | -5/Factory | Core integrity fell below 20% 26759 | -5/Factory | Entered Upper Caves 26882 | -5/Upper Caves | Spotted IM-3NF(f) 26884 | -5/Upper Caves | Encountered a Master Thief 26888 | -5/Upper Caves | Matter Neutralizer stolen by Master Thief 26891 | -5/Upper Caves | Destroyed IM-3NF(f) 26961 | -5/Upper Caves | Spotted LZ-QRH(f) 26962 | -5/Upper Caves | Encountered a Master Thief 26966 | -5/Upper Caves | Matter Neutralizer stolen by Master Thief 26966 | -5/Upper Caves | Destroyed LZ-QRH(f) 27120 | -5/Upper Caves | Destroyed by G-50 Soldier with Heavy Laser Last Messages --------------- 27082_ Slammed into G-50 Soldier. 27082_ G-50 Soldier knocked back. 27084_ Slammed into G-50 Soldier. 27086_ Acquired 7 matter. 27086_ Slug penetrates Wall. 27087_ System corrupted: Matter Neutralizer targeting data glitched. 27087_ Slug penetrates G-50 Soldier. 27087_ System corrupted: Coil Gun targeting data glitched. 27087_ Slug penetrates G-50 Soldier. 27087_ Destroyed Hvy. Laser. 27087_ G-50 Soldier destroyed. 27089_ CURRESW,QEBPX BPJRH7U0CLSIXC HV1# HH 27089_ Slug penetrates Wall. 27092_ Penetrated by Slug. 27105_ Slug penetrates Wall. 27109_ Penetrated by Slug. 27112_ Slug penetrates Wall. 27114_ Acquired 5 matter. 27115_ Penetrated by Slug. 27118_ Slug penetrates Wall. Map ----- +----------------------------------------------------+ | ?????????????????#??????????????????#????????????? | | ????????????????? %????????????????????##????????? | | ?????????????????#%??????????????????????#???????? | | ?????????????????# ?????????????????????????#?#??? | | ???????????????###%?????#??????????????????#?#?#?? | | ??????????????## # ??????????????#???????#??#???## | | ????????????### % ?????????????????##?#?#?#?#### | | ????????????? % %??? ???????????#?#??????##?##? | | ?????????????? %?????????????##???##??#???#### | | ???????????????#!% ???????????#?????#?##?#???#### | | ????????????????# ?????????##??#?#??#?#######??# | | ?????????????????#% #??????????##?#??###?##?##??## | | ??????????????????# ####???????????###?#???###### | | ???????????????????# ##?#???####?####?########### | | ??????????????????## #?####???###??##########?## | | ?????????????????## h ### ####???#?############# | | ?????????????????# ######## ## ##### | | ??????????? ?????# ? #### | | ?????????? ??? ??# g#### ## % ### | | ?????????????????# #### #### #### *= | | ??????"??????????## #######?## %[ | | ??????????????????## l #####???######### #### | | ???????????????????# ###?###?#??##### #### | | ???????????????????## ##??###?#### #### | | ?????????????????#??## ##?##??# ### | | ??????????????#??#???# @ ###?##### # | | ??????? ?????????????# ###?###?# #### | | ?????? ????#??????#??# #?## ### ### | | ???????????????? ??#?# #?# %%## | | ??????????????#????#### % ### # %## | | ?????????????????##???### ## ## #### | | ?????????????????#??????## ## ### ##### | | ?????????????????######### ### ### #?#### | | ????????????????# $ ## #### ###### ## | | ??????????#?? % % #### ###### ### | | ??????????#?? * ###### ### ######### | | ????????????? ????#?#??# ### # | | ?????????????????????#?# ### # | | ??????????????????????# ### #### # | | ???????????????????#??# ## ### #### # | | ???????????????#??????# #### ### ### # | | ????????????????#???#### ##### ######## # | | ???????????????????????## ##### ####### # | | ?????????????????????#### ####?# ###### # | | ??????????????????????### ####?## ##### # | | ?????????????????? ?????## ##?#### #### | | ?????????????????????###?########## ## | | ????????????????? ??#?????#####?###### | | ?????????????????????? #?#?##?#?####### | | ??????????????????????? #?######?#?#### | +----------------------------------------------------+ Best States ------------- Heat Dissipation 160 Coolant Potential 65 Energy Generation 45 Energy Capacity 900 Matter Stores 389 Matter Capacity 750 Sight Range 22 Robot Scan Range 24 Terrain Scan Range 20 Terrain Scan Density 610 Armor Coverage 225 Resistance: KI 35 Resistance: TH 35 Resistance: EX 55 Resistance: EM 35 Resistance: I 35 Resistance: S 35 Resistance: P 35 Evasion (%) 50 Targeting Accuracy 8 Recoil Reduction 4 Particle Charging 15 Offensive Hacking 35 Item Schematics ----------------- None Robot Schematics ------------------ None Fabricated ------------ Imp. Launcher Guidance Computer | x2 | -7/Factory | Preloaded B-60 Warrior | x3 | -5/Factory | Preloaded A-02 Transporter | x1 | -5/Factory | Preloaded Alien Tech Used ----------------- None Achievements -------------- Help From High Places Release The Drones! Challenges ------------ None RPGLIKE | -11 -10 -10 -9 -9 -9 -8 -8 -7 -7 -6 -6 -6 -6 -5 -5 -5 --------- Run | Scr Mat Min Mat Min Exi Min Mat Fac Sto Fac Low Low Zio Pro Fac Upp Levels Raised 22 | . . 1 5 . 1 1 3 3 2 . 1 1 . 1 3 . XP Earned 39698 | 6000 1490 789 7345 850 304 1500 4526 4777 2429 1277 1141 713 270 2276 3836 175 XP Spent 38820 | 1800 370 . 11630 . 2300 . 5620 4850 1700 1600 1100 800 1025 . 6025 . Upgrades 86 | 3 3 . 17 . 1 . 8 19 1 16 1 1 5 . 11 . Power Slot 2 | . . . 1 . . . . . . . . 1 . . . . Propulsion Slot 3 | 1 . . . . . . 1 . . . 1 . . . . . Utility Slot 5 | . . . 1 . . . 2 1 1 . . . . . . . Weapon Slot 9 | 2 . . 4 . 1 . 1 . . . . . . . 1 . Core Integrity 21 | . . . . . . . . . . 16 . . 5 . . . Heat Dissipation 11 | . 2 . 3 . . . . 6 . . . . . . . . Matter Storage 7 | . . . . . . . . . . . . . . . 7 . Inventory Capacity 1 | . 1 . . . . . . . . . . . . . . . Sensor Range 12 | . . . . . . . . 12 . . . . . . . . Terrain Scan Density 4 | . . . . . . . 4 . . . . . . . . . Hack Attack % 3 | . . . . . . . . . . . . . . . 3 . EX Resistance % 4 | . . . 4 . . . . . . . . . . . . . EX Damage % 4 | . . . 4 . . . . . . . . . . . . . Protomatter Created 4925 | . 218 . 530 42 . 156 520 829 882 . 274 313 . 326 736 99 Integrity Restored 7628 | . 206 14 607 78 . 337 231 915 1476 . 444 692 . 912 1731 -15 Core 6421 | . 164 10 516 78 . 190 125 786 1162 . 444 318 . 912 1731 -15 Parts 1207 | . 42 4 91 . . 147 106 129 314 . . 374 . . . . Protomatter Decayed 1971 | . 143 42 321 9 . 19 412 438 177 . 20 . 153 . 133 104 Game ------ Seed ControlWeldingBeamcaster Manual? 0 Play Time 03:42:55 Cumulative 70.0 hours Start 2020.01.01 @ 10:01:49 End 2020.01.01 @ 14:47:58 Sessions 1 Manual Loads 0 Difficulty Explorer Special Mode Winter2019/RPGLIKE Game No. 56 Rogue 49 Adventurer 0 Explorer 7 Win Type - Total 0 Types 0/0/0/0/0/0/0 Lore% 37 Gallery% 40 Achievement% 36 Wizard Run 0 Options --------- ASCII 1 Keyboard 1 Movement Vi Keybinds 0 Fullscreen 1 Font 18/SmallcapsGlow Map View 76x50 Tactical HUD 1 Map Filters NONE Filters LOW_CONTRAST(47,30,31)|SHIFT_HUE(270) Steam 1 RUN: c94ffe43-c6ed-4587-adbf-163a21b633b4